[Event "Late-Titled-Tuesday-Blitz-April-02-2024"]
[Site "Chess.com"]
[Date "2024.04.02"]
[Round "4"]
[White "ExtremeLearner"]
[Black "dedpihto_v_kozhanom_palto"]
[Result "0-1"]
[WhiteElo "2560"]
[BlackElo "2719"]
[TimeControl "180+1"]
[EndTime "14:39:24 PDT"]
[Termination "dedpihto_v_kozhanom_palto won by resignation"]

1. e4 {[%clk 0:03:00.9]} 1... g6 {[%clk 0:03:00.9]} 2. d4 {[%clk 0:02:59.6]}
2... Bg7 {[%clk 0:03:01.6]} 3. Nc3 {[%clk 0:02:53.2]} 3... d6 {[%clk 0:03:00.2]}
4. Be3 {[%clk 0:02:53.3]} 4... Nc6 {[%clk 0:02:53.7]} 5. g4 {[%clk 0:02:49.4]}
5... e5 {[%clk 0:02:53.5]} 6. d5 {[%clk 0:02:46.1]} 6... Nd4 {[%clk 0:02:52.3]}
7. Bd3 {[%clk 0:02:41]} 7... c5 {[%clk 0:02:51.3]} 8. dxc6 {[%clk 0:02:37.3]}
8... bxc6 {[%clk 0:02:52.2]} 9. h4 {[%clk 0:02:31.9]} 9... h5 {[%clk 0:02:41.6]}
10. g5 {[%clk 0:02:27.8]} 10... Ne7 {[%clk 0:02:36.7]} 11. Nce2 {[%clk
0:02:24.8]} 11... O-O {[%clk 0:02:32.3]} 12. Bxd4 {[%clk 0:02:18.1]} 12... exd4
{[%clk 0:02:33.2]} 13. f4 {[%clk 0:02:14.2]} 13... d5 {[%clk 0:02:33.3]} 14. Nf3
{[%clk 0:02:01.7]} 14... dxe4 {[%clk 0:02:30.8]} 15. Bxe4 {[%clk 0:02:02.6]}
15... Bf5 {[%clk 0:02:31.1]} 16. Qd3 {[%clk 0:01:57.6]} 16... Re8 {[%clk
0:02:26.7]} 17. Bxf5 {[%clk 0:01:51.4]} 17... Nxf5 {[%clk 0:02:27.6]} 18. O-O-O
{[%clk 0:01:51.3]} 18... Re3 {[%clk 0:02:25.2]} 19. Qc4 {[%clk 0:01:50.3]} 19...
c5 {[%clk 0:02:10.2]} 20. Rhf1 {[%clk 0:01:43.3]} 20... Qb6 {[%clk 0:01:59]} 21.
Ne5 {[%clk 0:01:35.9]} 21... Bxe5 {[%clk 0:01:46.9]} 22. fxe5 {[%clk 0:01:36.8]}
22... Rxe5 {[%clk 0:01:46.1]} 23. Ng3 {[%clk 0:01:35.9]} 23... Qe6 {[%clk
0:01:41.7]} 24. Qxe6 {[%clk 0:01:34.8]} 24... fxe6 {[%clk 0:01:42.6]} 25. Nxf5
{[%clk 0:01:33.7]} 25... exf5 {[%clk 0:01:43.5]} 26. b4 {[%clk 0:01:31.6]} 26...
Rc8 {[%clk 0:01:39.7]} 27. bxc5 {[%clk 0:01:14.2]} 27... Rexc5 {[%clk
0:01:40.6]} 28. Rxd4 {[%clk 0:01:14.7]} 28... Rxc2+ {[%clk 0:01:40.5]} 29. Kb1
{[%clk 0:01:15.3]} 29... R2c4 {[%clk 0:01:28.6]} 30. Rd6 {[%clk 0:01:01.6]}
30... R4c6 {[%clk 0:01:19.3]} 31. Rfd1 {[%clk 0:00:57.6]} 31... Kf7 {[%clk
0:01:17.6]} 32. Rd7+ {[%clk 0:00:56.1]} 32... Ke6 {[%clk 0:01:17.2]} 33. Rxa7
{[%clk 0:00:53.5]} 33... Rb6+ {[%clk 0:01:14.6]} 34. Ka1 {[%clk 0:00:53.1]}
34... f4 {[%clk 0:01:15.2]} 35. Ra5 {[%clk 0:00:39.1]} 35... Rc2 {[%clk
0:01:01.2]} 36. Re1+ {[%clk 0:00:38]} 36... Kd6 {[%clk 0:01:01.7]} 37. Rd1+
{[%clk 0:00:31.7]} 37... Kc6 {[%clk 0:00:59.1]} 38. Ra3 {[%clk 0:00:13.9]} 38...
Rb4 {[%clk 0:00:34.9]} 39. Ra6+ {[%clk 0:00:13.7]} 39... Kb5 {[%clk 0:00:34.1]}
40. Rxg6 {[%clk 0:00:13.6]} 40... f3 {[%clk 0:00:25.3]} 41. Rf6 {[%clk
0:00:13.9]} 41... f2 {[%clk 0:00:25.5]} 42. g6 {[%clk 0:00:14.2]} 42... Rbb2
{[%clk 0:00:21.9]} 43. g7 {[%clk 0:00:08.1]} 43... Rxa2+ {[%clk 0:00:19.3]} 44.
Kb1 {[%clk 0:00:08.7]} 44... Rcb2+ {[%clk 0:00:20.2]} 45. Kc1 {[%clk 0:00:09.2]}
45... Re2 {[%clk 0:00:18.3]} 46. Kb1 {[%clk 0:00:07.4]} 46... Rab2+ {[%clk
0:00:17.5]} 47. Ka1 {[%clk 0:00:06.7]} 47... Ra2+ {[%clk 0:00:17.7]} 48. Kb1
{[%clk 0:00:07.1]} 48... Ra8 {[%clk 0:00:09.4]} 49. Rf8 {[%clk 0:00:06.4]} 49...
Re1 {[%clk 0:00:09.9]} 50. g8=Q {[%clk 0:00:03]} 50... Rxd1+ {[%clk 0:00:07.6]}
51. Kc2 {[%clk 0:00:03.5]} 51... Rxf8 {[%clk 0:00:08.1]} 52. Qg5+ {[%clk
0:00:02]} 52... Kc6 {[%clk 0:00:07.3]} 53. Qh6+ {[%clk 0:00:02.5]} 53... Kd7
{[%clk 0:00:07]} 54. Qg7+ {[%clk 0:00:02]} 54... Ke8 {[%clk 0:00:06.7]} 55. Qg6+
{[%clk 0:00:02.1]} 55... Ke7 {[%clk 0:00:06.8]} 56. Qg7+ {[%clk 0:00:02.2]}
56... Rf7 {[%clk 0:00:06.8]} 57. Qe5+ {[%clk 0:00:02.9]} 57... Kd7 {[%clk
0:00:07]} 58. Qb5+ {[%clk 0:00:03.5]} 58... Kd6 {[%clk 0:00:07.3]} 59. Qb6+
{[%clk 0:00:02.8]} 59... Ke5 {[%clk 0:00:07.1]} 60. Qe3+ {[%clk 0:00:02.7]}
60... Kd5 {[%clk 0:00:07.6]} 61. Qg5+ {[%clk 0:00:01.8]} 61... Ke4 {[%clk
0:00:07.6]} 62. Qg6+ {[%clk 0:00:01.8]} 62... Ke3 {[%clk 0:00:07.1]} 63. Qxf7
{[%clk 0:00:02.2]} 63... f1=Q {[%clk 0:00:08]} 64. Qe6+ {[%clk 0:00:02.6]} 64...
Kf2 {[%clk 0:00:07.9]} 65. Qf5+ {[%clk 0:00:02.4]} 65... Kg2 {[%clk 0:00:08.5]}
66. Qg5+ {[%clk 0:00:02.5]} 66... Kh3 {[%clk 0:00:08.5]} 67. Qxh5 {[%clk
0:00:01.9]} 67... Rc1+ {[%clk 0:00:08.3]} 68. Kb2 {[%clk 0:00:02.2]} 68... Rb1+
{[%clk 0:00:08.4]} 69. Ka2 {[%clk 0:00:02.5]} 69... Ra1+ {[%clk 0:00:08.7]} 70.
Kb3 {[%clk 0:00:03.4]} 70... Qc1 {[%clk 0:00:09.2]} 71. Qf3+ {[%clk 0:00:02.7]}
71... Kxh4 {[%clk 0:00:08.9]} 72. Qf2+ {[%clk 0:00:01.4]} 72... Kg4 {[%clk
0:00:09.1]} 73. Qg2+ {[%clk 0:00:01.9]} 73... Kf4 {[%clk 0:00:09.6]} 74. Qf2+
{[%clk 0:00:02.5]} 74... Ke4 {[%clk 0:00:10.3]} 75. Qe2+ {[%clk 0:00:02.9]}
75... Qe3+ {[%clk 0:00:10.8]} 76. Kb4 {[%clk 0:00:02.2]} 76... Qxe2 {[%clk
0:00:10.7]} 77. Kc5 {[%clk 0:00:02.3]} 77... Rd1 {[%clk 0:00:11.5]} 78. Kb4
{[%clk 0:00:02.1]} 78... Qb2+ {[%clk 0:00:12.2]} 0-1

[Event "Late-Titled-Tuesday-Blitz-April-02-2024"]
[Site "Chess.com"]
[Date "2024.04.02"]
[Round "4"]
[White "DanielNaroditsky"]
[Black "sergoy"]
[Result "0-1"]
[WhiteElo "3140"]
[BlackElo "2912"]
[TimeControl "180+1"]
[EndTime "14:39:28 PDT"]
[Termination "sergoy won by checkmate"]

1. e4 {[%clk 0:03:00]} 1... c5 {[%clk 0:02:59.6]} 2. c3 {[%clk 0:02:59]} 2...
Nf6 {[%clk 0:02:59.1]} 3. e5 {[%clk 0:02:59.6]} 3... Nd5 {[%clk 0:02:59.7]} 4.
Nf3 {[%clk 0:03:00.4]} 4... e6 {[%clk 0:03:00]} 5. d4 {[%clk 0:03:00.1]} 5...
cxd4 {[%clk 0:03:00.9]} 6. cxd4 {[%clk 0:03:00.9]} 6... d6 {[%clk 0:03:01.6]} 7.
Bc4 {[%clk 0:03:00.6]} 7... Nc6 {[%clk 0:03:02.1]} 8. O-O {[%clk 0:03:00.2]}
8... Be7 {[%clk 0:03:02.7]} 9. Qe2 {[%clk 0:03:00.2]} 9... O-O {[%clk
0:03:03.3]} 10. Rd1 {[%clk 0:02:58.2]} 10... Qc7 {[%clk 0:03:02.1]} 11. Nc3
{[%clk 0:02:55.9]} 11... Nxc3 {[%clk 0:02:55.9]} 12. bxc3 {[%clk 0:02:56.8]}
12... dxe5 {[%clk 0:02:56]} 13. dxe5 {[%clk 0:02:57.7]} 13... Bd7 {[%clk
0:02:53.7]} 14. Bd3 {[%clk 0:02:51.3]} 14... Rfd8 {[%clk 0:02:52.6]} 15. Ng5
{[%clk 0:02:35.2]} 15... g6 {[%clk 0:02:42]} 16. Bf4 {[%clk 0:02:31.1]} 16...
Be8 {[%clk 0:02:32.4]} 17. h4 {[%clk 0:02:18.3]} 17... Qa5 {[%clk 0:02:20.2]}
18. Rac1 {[%clk 0:02:05.5]} 18... Rd5 {[%clk 0:02:20.2]} 19. c4 {[%clk 0:01:48]}
19... Rd4 {[%clk 0:02:15.1]} 20. Be4 {[%clk 0:01:29.9]} 20... Rad8 {[%clk
0:02:09.8]} 21. Rxd4 {[%clk 0:01:22.2]} 21... Nxd4 {[%clk 0:02:03.4]} 22. Qf1
{[%clk 0:00:59.2]} 22... Qxa2 {[%clk 0:01:34.4]} 23. Ra1 {[%clk 0:00:58.2]}
23... Qb2 {[%clk 0:01:33.6]} 24. Rb1 {[%clk 0:00:55.7]} 24... Qa2 {[%clk
0:01:30.4]} 25. Rxb7 {[%clk 0:00:48.5]} 25... Bc5 {[%clk 0:01:16.4]} 26. Be3
{[%clk 0:00:47.5]} 26... h6 {[%clk 0:01:04.5]} 27. Nf3 {[%clk 0:00:28]} 27...
Nxf3+ {[%clk 0:01:04.4]} 28. Bxf3 {[%clk 0:00:28.9]} 28... Bxe3 {[%clk
0:01:03.5]} 29. fxe3 {[%clk 0:00:29.8]} 29... Qa3 {[%clk 0:01:01.5]} 30. Qe1
{[%clk 0:00:20.8]} 30... Qc5 {[%clk 0:01:00.5]} 31. Qc3 {[%clk 0:00:18.2]} 31...
a5 {[%clk 0:00:59.5]} 32. h5 {[%clk 0:00:15]} 32... g5 {[%clk 0:00:58.2]} 33.
Kh2 {[%clk 0:00:15.2]} 33... a4 {[%clk 0:00:58.1]} 34. Rb4 {[%clk 0:00:15]}
34... Kg7 {[%clk 0:00:52.7]} 35. Bg4 {[%clk 0:00:14.3]} 35... Rc8 {[%clk
0:00:30.6]} 36. Bd1 {[%clk 0:00:12.9]} 36... Ra8 {[%clk 0:00:29.7]} 37. Rb2
{[%clk 0:00:11.4]} 37... Bc6 {[%clk 0:00:26.9]} 38. Qd4 {[%clk 0:00:08.8]} 38...
Qa5 {[%clk 0:00:23.3]} 39. Rf2 {[%clk 0:00:08.3]} 39... Rf8 {[%clk 0:00:20.5]}
40. Qd6 {[%clk 0:00:08]} 40... Qb6 {[%clk 0:00:06.3]} 41. c5 {[%clk 0:00:07.9]}
41... Qb7 {[%clk 0:00:05.9]} 42. Qd4 {[%clk 0:00:04.4]} 42... Ra8 {[%clk
0:00:05.7]} 43. Qc3 {[%clk 0:00:03.4]} 43... Qe7 {[%clk 0:00:05.3]} 44. Bf3
{[%clk 0:00:02.8]} 44... Bxf3 {[%clk 0:00:05]} 45. Rxf3 {[%clk 0:00:03.7]} 45...
Rc8 {[%clk 0:00:05.7]} 46. c6 {[%clk 0:00:03.5]} 46... Qc7 {[%clk 0:00:05.5]}
47. Qd4 {[%clk 0:00:02.7]} 47... Qxc6 {[%clk 0:00:05.7]} 48. Qa7 {[%clk
0:00:03.2]} 48... Rc7 {[%clk 0:00:05.7]} 49. Qa5 {[%clk 0:00:03.6]} 49... Rd7
{[%clk 0:00:05]} 50. Qb4 {[%clk 0:00:03.4]} 50... Qd5 {[%clk 0:00:05.1]} 51. Qc3
{[%clk 0:00:03.2]} 51... Ra7 {[%clk 0:00:04.6]} 52. Rf2 {[%clk 0:00:01.9]} 52...
a3 {[%clk 0:00:04.9]} 53. Rf1 {[%clk 0:00:02.5]} 53... a2 {[%clk 0:00:05.3]} 54.
Ra1 {[%clk 0:00:03]} 54... Qe4 {[%clk 0:00:05.9]} 55. Qd4 {[%clk 0:00:02.6]}
55... Qxd4 {[%clk 0:00:05.6]} 56. exd4 {[%clk 0:00:03.5]} 56... Ra3 {[%clk
0:00:06.2]} 57. Kg1 {[%clk 0:00:03.7]} 57... Kf8 {[%clk 0:00:06.9]} 58. Kf2
{[%clk 0:00:04.4]} 58... Ke7 {[%clk 0:00:07.6]} 59. Ke2 {[%clk 0:00:05.3]} 59...
Kd7 {[%clk 0:00:08.2]} 60. Kd2 {[%clk 0:00:06]} 60... Kc6 {[%clk 0:00:08.8]} 61.
Kc2 {[%clk 0:00:06.9]} 61... Kd5 {[%clk 0:00:09.2]} 62. Kb2 {[%clk 0:00:07.8]}
62... Ra8 {[%clk 0:00:09.3]} 63. g4 {[%clk 0:00:08.2]} 63... Kxd4 {[%clk
0:00:09.1]} 64. Kb3 {[%clk 0:00:09.1]} 64... Kxe5 {[%clk 0:00:09.3]} 65. Kb2
{[%clk 0:00:07.7]} 65... Kf4 {[%clk 0:00:09.7]} 66. Rf1+ {[%clk 0:00:08.3]}
66... Kxg4 {[%clk 0:00:10.3]} 67. Ka1 {[%clk 0:00:09.2]} 67... f5 {[%clk
0:00:10.5]} 68. Rg1+ {[%clk 0:00:09.4]} 68... Kf4 {[%clk 0:00:11]} 69. Rg2
{[%clk 0:00:09.8]} 69... g4 {[%clk 0:00:11.3]} 70. Rf2+ {[%clk 0:00:10.4]} 70...
Kg5 {[%clk 0:00:11.6]} 71. Rc2 {[%clk 0:00:11]} 71... f4 {[%clk 0:00:11.9]} 72.
Rc1 {[%clk 0:00:11.7]} 72... f3 {[%clk 0:00:12.2]} 73. Rc5+ {[%clk 0:00:11.4]}
73... Kh4 {[%clk 0:00:12.2]} 74. Rc1 {[%clk 0:00:12]} 74... f2 {[%clk
0:00:12.1]} 75. Rf1 {[%clk 0:00:11.5]} 75... g3 {[%clk 0:00:12.5]} 76. Rh1+
{[%clk 0:00:11.5]} 76... Kg4 {[%clk 0:00:12.6]} 77. Rc1 {[%clk 0:00:12.4]} 77...
g2 {[%clk 0:00:12.8]} 78. Rc4+ {[%clk 0:00:12.6]} 78... Kh3 {[%clk 0:00:13.3]}
79. Rc3+ {[%clk 0:00:10.1]} 79... Kh2 {[%clk 0:00:13.6]} 80. Rc1 {[%clk
0:00:03.6]} 80... f1=Q {[%clk 0:00:13.1]} 81. Kb2 {[%clk 0:00:03.7]} 81... Qxc1+
{[%clk 0:00:12.8]} 82. Kb3 {[%clk 0:00:03.5]} 82... a1=Q {[%clk 0:00:13.7]} 83.
Kb4 {[%clk 0:00:03.7]} 83... Qcc3+ {[%clk 0:00:14]} 84. Kb5 {[%clk 0:00:02.9]}
84... Qaa5# {[%clk 0:00:14.9]} 0-1

[Event "Late-Titled-Tuesday-Blitz-April-02-2024"]
[Site "Chess.com"]
[Date "2024.04.02"]
[Round "4"]
[White "Balla_Tamas"]
[Black "KATPAH"]
[Result "1-0"]
[WhiteElo "2508"]
[BlackElo "2672"]
[TimeControl "180+1"]
[EndTime "14:40:06 PDT"]
[Termination "Balla_Tamas won by checkmate"]

1. Nf3 {[%clk 0:03:00.9]} 1... Nf6 {[%clk 0:02:56.6]} 2. b3 {[%clk 0:02:58.9]}
2... g6 {[%clk 0:02:56.9]} 3. Bb2 {[%clk 0:02:59.1]} 3... Bg7 {[%clk 0:02:57.8]}
4. e3 {[%clk 0:02:59.4]} 4... O-O {[%clk 0:02:58.1]} 5. c4 {[%clk 0:02:59.9]}
5... d5 {[%clk 0:02:58.5]} 6. Nc3 {[%clk 0:02:57.7]} 6... dxc4 {[%clk
0:02:58.4]} 7. bxc4 {[%clk 0:02:57.4]} 7... c5 {[%clk 0:02:58.8]} 8. d4 {[%clk
0:02:57.4]} 8... cxd4 {[%clk 0:02:58.8]} 9. exd4 {[%clk 0:02:58.3]} 9... Nc6
{[%clk 0:02:59]} 10. d5 {[%clk 0:02:57.9]} 10... Nb8 {[%clk 0:02:50.3]} 11. Be2
{[%clk 0:02:57.5]} 11... Qb6 {[%clk 0:02:50]} 12. Rb1 {[%clk 0:02:55.5]} 12...
Bf5 {[%clk 0:02:50]} 13. Bd3 {[%clk 0:02:53.8]} 13... Bxd3 {[%clk 0:02:50.3]}
14. Qxd3 {[%clk 0:02:54.4]} 14... Nbd7 {[%clk 0:02:51.1]} 15. O-O {[%clk
0:02:53.4]} 15... Nc5 {[%clk 0:02:51]} 16. Qe2 {[%clk 0:02:48.4]} 16... Qa6
{[%clk 0:02:45.6]} 17. Nb5 {[%clk 0:02:34.8]} 17... Rac8 {[%clk 0:02:45.1]} 18.
Qxe7 {[%clk 0:02:26.6]} 18... Qxa2 {[%clk 0:02:42.7]} 19. Nd6 {[%clk 0:01:59.6]}
19... Ncd7 {[%clk 0:01:32]} 20. Nxc8 {[%clk 0:01:43.8]} 20... Rxc8 {[%clk
0:01:32.9]} 21. Ne5 {[%clk 0:01:40.8]} 21... Nxe5 {[%clk 0:01:25.2]} 22. Bxe5
{[%clk 0:01:40.4]} 22... Re8 {[%clk 0:01:25.5]} 23. Qc7 {[%clk 0:01:32.9]} 23...
Nxd5 {[%clk 0:01:08.4]} 24. Qd7 {[%clk 0:01:14.5]} 24... Rxe5 {[%clk 0:01:07.4]}
25. cxd5 {[%clk 0:01:12.1]} 25... Qxd5 {[%clk 0:01:01.7]} 26. Qc8+ {[%clk
0:01:12.2]} 26... Bf8 {[%clk 0:01:01.9]} 27. Rxb7 {[%clk 0:01:11.9]} 27... Kg7
{[%clk 0:00:58.9]} 28. Rb8 {[%clk 0:01:12]} 28... Bc5 {[%clk 0:00:48.5]} 29.
Qh8+ {[%clk 0:01:04.6]} 29... Kh6 {[%clk 0:00:48.9]} 30. Qf6 {[%clk 0:00:59.6]}
30... Bd4 {[%clk 0:00:39.5]} 31. Qf4+ {[%clk 0:00:52.6]} 31... Kg7 {[%clk
0:00:37.3]} 32. Rbb1 {[%clk 0:00:38.8]} 32... Rf5 {[%clk 0:00:36.4]} 33. Qd2
{[%clk 0:00:32.7]} 33... Qe5 {[%clk 0:00:33]} 34. Rbd1 {[%clk 0:00:32.1]} 34...
Bb6 {[%clk 0:00:32.8]} 35. Rde1 {[%clk 0:00:31.8]} 35... Qf6 {[%clk 0:00:31.8]}
36. Re2 {[%clk 0:00:31.5]} 36... a5 {[%clk 0:00:31.2]} 37. Qc2 {[%clk
0:00:30.3]} 37... Bc5 {[%clk 0:00:30]} 38. h3 {[%clk 0:00:30.5]} 38... Bb4
{[%clk 0:00:26.9]} 39. Rd1 {[%clk 0:00:27.4]} 39... Rc5 {[%clk 0:00:25.1]} 40.
Qd3 {[%clk 0:00:23.9]} 40... a4 {[%clk 0:00:22.8]} 41. Re4 {[%clk 0:00:23.7]}
41... Qc3 {[%clk 0:00:17.7]} 42. Qxc3+ {[%clk 0:00:17.4]} 42... Bxc3 {[%clk
0:00:18.6]} 43. Rxa4 {[%clk 0:00:17.7]} 43... Rf5 {[%clk 0:00:18]} 44. Ra7
{[%clk 0:00:16.5]} 44... Bb4 {[%clk 0:00:17.3]} 45. Ra2 {[%clk 0:00:14]} 45...
Bc5 {[%clk 0:00:16.5]} 46. g4 {[%clk 0:00:13.8]} 46... Rf4 {[%clk 0:00:15.4]}
47. Kg2 {[%clk 0:00:14]} 47... Bb6 {[%clk 0:00:15.3]} 48. Kg3 {[%clk 0:00:13.7]}
48... Rf6 {[%clk 0:00:14.3]} 49. Rad2 {[%clk 0:00:12.4]} 49... Bc7+ {[%clk
0:00:13.9]} 50. Kg2 {[%clk 0:00:12.5]} 50... Bb6 {[%clk 0:00:14.6]} 51. f3
{[%clk 0:00:11.9]} 51... Bc5 {[%clk 0:00:13]} 52. Rd5 {[%clk 0:00:11.6]} 52...
Bb4 {[%clk 0:00:12]} 53. R1d4 {[%clk 0:00:10.2]} 53... Ba3 {[%clk 0:00:11.5]}
54. Rd3 {[%clk 0:00:10.2]} 54... Bb4 {[%clk 0:00:11.6]} 55. h4 {[%clk
0:00:09.7]} 55... h6 {[%clk 0:00:10.6]} 56. h5 {[%clk 0:00:09.7]} 56... g5
{[%clk 0:00:10.2]} 57. Rd7 {[%clk 0:00:05.3]} 57... Bc5 {[%clk 0:00:09.6]} 58.
R3d5 {[%clk 0:00:05.2]} 58... Bb4 {[%clk 0:00:09.5]} 59. Rb5 {[%clk 0:00:03.8]}
59... Bd6 {[%clk 0:00:08.2]} 60. Rb6 {[%clk 0:00:02.9]} 60... Be5 {[%clk
0:00:08.5]} 61. Rxf6 {[%clk 0:00:03]} 61... Bxf6 {[%clk 0:00:09.4]} 62. Rd5
{[%clk 0:00:03.6]} 62... Be7 {[%clk 0:00:09.5]} 63. Rf5 {[%clk 0:00:04.1]} 63...
Bf6 {[%clk 0:00:07.2]} 64. Kf2 {[%clk 0:00:04.7]} 64... Ba1 {[%clk 0:00:07.7]}
65. Ke3 {[%clk 0:00:05.2]} 65... Bc3 {[%clk 0:00:08.1]} 66. Rd5 {[%clk
0:00:05.3]} 66... Bb2 {[%clk 0:00:06.7]} 67. Ke4 {[%clk 0:00:05.8]} 67... Ba1
{[%clk 0:00:06.4]} 68. f4 {[%clk 0:00:06.2]} 68... gxf4 {[%clk 0:00:05.4]} 69.
Kxf4 {[%clk 0:00:06.5]} 69... Bf6 {[%clk 0:00:06]} 70. Kf5 {[%clk 0:00:06.7]}
70... Bg5 {[%clk 0:00:06]} 71. Rd6 {[%clk 0:00:05.2]} 71... Be7 {[%clk
0:00:05.7]} 72. Ra6 {[%clk 0:00:05.3]} 72... Bg5 {[%clk 0:00:06.3]} 73. Ra7
{[%clk 0:00:05.6]} 73... Be3 {[%clk 0:00:05.6]} 74. Rb7 {[%clk 0:00:04]} 74...
Bg5 {[%clk 0:00:06]} 75. Ke5 {[%clk 0:00:04.2]} 75... Be3 {[%clk 0:00:05.6]} 76.
Kd6 {[%clk 0:00:04.2]} 76... Kf6 {[%clk 0:00:05.7]} 77. Kd7 {[%clk 0:00:04.4]}
77... Kg5 {[%clk 0:00:05.8]} 78. Rb4 {[%clk 0:00:01.7]} 78... Bf4 {[%clk
0:00:06.5]} 79. Ke8 {[%clk 0:00:02.1]} 79... f5 {[%clk 0:00:05]} 80. gxf5 {[%clk
0:00:02.6]} 80... Kxf5 {[%clk 0:00:05.9]} 81. Kf7 {[%clk 0:00:02.9]} 81... Kg5
{[%clk 0:00:06]} 82. Kg7 {[%clk 0:00:03.4]} 82... Be5+ {[%clk 0:00:06.5]} 83.
Kf7 {[%clk 0:00:02.6]} 83... Bc3 {[%clk 0:00:05.8]} 84. Rb5+ {[%clk 0:00:03]}
84... Kg4 {[%clk 0:00:06.5]} 85. Kg6 {[%clk 0:00:03.5]} 85... Bd2 {[%clk
0:00:07.1]} 86. Rc5 {[%clk 0:00:03.1]} 86... Be3 {[%clk 0:00:07]} 87. Rc4+
{[%clk 0:00:03.1]} 87... Kf3 {[%clk 0:00:06.4]} 88. Rc8 {[%clk 0:00:04]} 88...
Kg4 {[%clk 0:00:06.2]} 89. Rh8 {[%clk 0:00:04.6]} 89... Kf4 {[%clk 0:00:06.4]}
90. Rxh6 {[%clk 0:00:04.8]} 90... Ke5 {[%clk 0:00:07.3]} 91. Rh8 {[%clk
0:00:05.3]} 91... Kd6 {[%clk 0:00:07.7]} 92. Re8 {[%clk 0:00:05.2]} 92... Bf4
{[%clk 0:00:07.5]} 93. Re2 {[%clk 0:00:05.5]} 93... Kd7 {[%clk 0:00:08.4]} 94.
h6 {[%clk 0:00:06]} 94... Kd6 {[%clk 0:00:08]} 95. h7 {[%clk 0:00:06.5]} 95...
Be5 {[%clk 0:00:08.9]} 96. Rxe5 {[%clk 0:00:06.6]} 96... Kxe5 {[%clk 0:00:09.8]}
97. h8=Q+ {[%clk 0:00:07.4]} 97... Ke4 {[%clk 0:00:10.7]} 98. Qf6 {[%clk
0:00:07.8]} 98... Kd3 {[%clk 0:00:11.6]} 99. Qe5 {[%clk 0:00:08.1]} 99... Kc2
{[%clk 0:00:12.5]} 100. Qd4 {[%clk 0:00:08.4]} 100... Kb1 {[%clk 0:00:13.4]}
101. Qf2 {[%clk 0:00:08.2]} 101... Ka1 {[%clk 0:00:14.3]} 102. Qe2 {[%clk
0:00:08.8]} 102... Kb1 {[%clk 0:00:14.4]} 103. Kf5 {[%clk 0:00:09.7]} 103... Kc1
{[%clk 0:00:15.3]} 104. Ke4 {[%clk 0:00:10.6]} 104... Kb1 {[%clk 0:00:16.2]}
105. Kd3 {[%clk 0:00:11.5]} 105... Kc1 {[%clk 0:00:17.1]} 106. Kc3 {[%clk
0:00:12.4]} 106... Kb1 {[%clk 0:00:18]} 107. Qb2# {[%clk 0:00:12.6]} 1-0

[Event "Late-Titled-Tuesday-Blitz-April-02-2024"]
[Site "Chess.com"]
[Date "2024.04.02"]
[Round "5"]
[White "burritus"]
[Black "miraitrunks"]
[Result "1-0"]
[WhiteElo "2438"]
[BlackElo "2186"]
[TimeControl "180+1"]
[EndTime "14:48:29 PDT"]
[Termination "burritus won by resignation"]

1. c4 {[%clk 0:02:59.9]} 1... c5 {[%clk 0:02:58.5]} 2. Nf3 {[%clk 0:02:59.3]}
2... Nc6 {[%clk 0:02:58.4]} 3. d4 {[%clk 0:02:59.4]} 3... cxd4 {[%clk
0:02:59.3]} 4. Nxd4 {[%clk 0:02:59.8]} 4... g6 {[%clk 0:02:57.4]} 5. e4 {[%clk
0:02:57.9]} 5... Bg7 {[%clk 0:02:57.4]} 6. Be3 {[%clk 0:02:58.6]} 6... Nf6
{[%clk 0:02:53.5]} 7. Nc3 {[%clk 0:02:58.3]} 7... O-O {[%clk 0:02:52.7]} 8. Be2
{[%clk 0:02:58]} 8... d6 {[%clk 0:02:52.4]} 9. O-O {[%clk 0:02:57.9]} 9... Nxd4
{[%clk 0:02:52]} 10. Bxd4 {[%clk 0:02:57.5]} 10... Be6 {[%clk 0:02:52.5]} 11.
Qd2 {[%clk 0:02:54.6]} 11... a6 {[%clk 0:02:51.3]} 12. Rac1 {[%clk 0:02:48.6]}
12... Rc8 {[%clk 0:02:48.9]} 13. b3 {[%clk 0:02:48.1]} 13... Qa5 {[%clk
0:02:45.9]} 14. f3 {[%clk 0:02:43.9]} 14... Nd7 {[%clk 0:02:39.4]} 15. Be3
{[%clk 0:02:43.2]} 15... b5 {[%clk 0:02:34.7]} 16. Nd5 {[%clk 0:02:36.4]} 16...
Qd8 {[%clk 0:02:06]} 17. cxb5 {[%clk 0:02:35.7]} 17... axb5 {[%clk 0:02:05.3]}
18. Rxc8 {[%clk 0:02:34.8]} 1-0

[Event "Late-Titled-Tuesday-Blitz-April-02-2024"]
[Site "Chess.com"]
[Date "2024.04.02"]
[Round "5"]
[White "laskakid"]
[Black "elcala"]
[Result "1-0"]
[WhiteElo "2297"]
[BlackElo "1805"]
[TimeControl "180+1"]
[EndTime "14:49:06 PDT"]
[Termination "laskakid won by resignation"]

1. e4 {[%clk 0:03:00.9]} 1... d5 {[%clk 0:02:56.7]} 2. exd5 {[%clk 0:03:00.3]}
2... Qxd5 {[%clk 0:02:57.6]} 3. Nc3 {[%clk 0:03:00.2]} 3... Qd6 {[%clk 0:02:58]}
4. d4 {[%clk 0:02:59.7]} 4... Nf6 {[%clk 0:02:56.1]} 5. Nf3 {[%clk 0:02:59.6]}
5... Nc6 {[%clk 0:02:56.5]} 6. Be2 {[%clk 0:02:54.2]} 6... a6 {[%clk 0:02:56.8]}
7. O-O {[%clk 0:02:54]} 7... Bg4 {[%clk 0:02:57.3]} 8. Be3 {[%clk 0:02:52.3]}
8... e6 {[%clk 0:02:56]} 9. h3 {[%clk 0:02:52.1]} 9... Bh5 {[%clk 0:02:53.6]}
10. Qd2 {[%clk 0:02:46.2]} 10... O-O-O {[%clk 0:02:53]} 11. Rad1 {[%clk
0:02:45]} 11... Qd7 {[%clk 0:02:43]} 12. a3 {[%clk 0:02:32.6]} 12... Nd5 {[%clk
0:02:32.7]} 13. Nxd5 {[%clk 0:02:29.4]} 13... Qxd5 {[%clk 0:02:32.6]} 14. c4
{[%clk 0:02:26.5]} 14... Qd7 {[%clk 0:02:29.9]} 15. b4 {[%clk 0:02:24.1]} 15...
f5 {[%clk 0:02:20.7]} 16. d5 {[%clk 0:02:11.5]} 16... exd5 {[%clk 0:02:18.4]}
17. cxd5 {[%clk 0:02:11.7]} 17... Ne7 {[%clk 0:02:17.4]} 18. Ne5 {[%clk
0:02:04.3]} 18... Qxd5 {[%clk 0:02:14.3]} 19. Qxd5 {[%clk 0:01:59.6]} 19... Nxd5
{[%clk 0:02:14.5]} 20. Bxh5 {[%clk 0:01:57.6]} 20... Nxe3 {[%clk 0:02:15.4]} 21.
fxe3 {[%clk 0:01:57.4]} 21... g6 {[%clk 0:02:13.6]} 22. Rxd8+ {[%clk 0:01:54.1]}
1-0

[Event "Late-Titled-Tuesday-Blitz-April-02-2024"]
[Site "Chess.com"]
[Date "2024.04.02"]
[Round "5"]
[White "temus_galaktionov"]
[Black "ValeriyGrinev"]
[Result "1-0"]
[WhiteElo "2849"]
[BlackElo "2595"]
[TimeControl "180+1"]
[EndTime "14:49:13 PDT"]
[Termination "temus_galaktionov won by resignation"]

1. d4 {[%clk 0:03:00.9]} 1... d5 {[%clk 0:02:59]} 2. c4 {[%clk 0:02:58.6]} 2...
e6 {[%clk 0:02:59.2]} 3. Nf3 {[%clk 0:02:59.2]} 3... Nf6 {[%clk 0:02:58.5]} 4.
Nc3 {[%clk 0:02:58.9]} 4... a6 {[%clk 0:02:59]} 5. cxd5 {[%clk 0:02:55]} 5...
exd5 {[%clk 0:02:59.9]} 6. Bg5 {[%clk 0:02:55.1]} 6... Be6 {[%clk 0:02:59.4]} 7.
e3 {[%clk 0:02:55]} 7... Nbd7 {[%clk 0:02:59]} 8. Bd3 {[%clk 0:02:54.4]} 8...
Bd6 {[%clk 0:02:58.4]} 9. h3 {[%clk 0:02:55]} 9... c6 {[%clk 0:02:57.6]} 10. O-O
{[%clk 0:02:55.6]} 10... Qc7 {[%clk 0:02:50.2]} 11. Qd2 {[%clk 0:02:56.2]} 11...
O-O {[%clk 0:02:49.6]} 12. Rfc1 {[%clk 0:02:55.2]} 12... Rfe8 {[%clk 0:02:37.8]}
13. Bf4 {[%clk 0:02:53.3]} 13... Bxf4 {[%clk 0:02:31.5]} 14. exf4 {[%clk
0:02:54.2]} 14... g6 {[%clk 0:02:31.8]} 15. Ne5 {[%clk 0:02:47]} 15... Nf8
{[%clk 0:02:27.4]} 16. g4 {[%clk 0:02:39]} 16... Qd6 {[%clk 0:02:27]} 17. f5
{[%clk 0:02:35.3]} 17... Bd7 {[%clk 0:02:26.7]} 18. Qf4 {[%clk 0:02:25]} 18...
gxf5 {[%clk 0:02:04.5]} 19. gxf5 {[%clk 0:02:25.9]} 19... Re7 {[%clk 0:01:44.1]}
20. Qg3+ {[%clk 0:02:19.3]} 1-0